Workbook

Sheet Chi phí dự kiến
B2: BIỂU MẪU SỐ 04/ĐGTĐ-SCM. TÍNH CHI PHÍ TUÂN THỦ THỦ TỤC HÀNH CHÍNH TRONG DỰ ÁN, DỰ THẢO VĂN BẢN
B5: BỘ CÔNG AN | I5: Biểu mẫu 04/ĐGTĐ-SCM
B8: CHI PHÍ TUÂN THỦ THỦ TỤC HÀNH CHÍNH TRONG DỰ ÁN, DỰ THẢO
A10: TÊN DỰ THẢO VĂN BẢN: LUẬT ĐỊNH DANH VÀ XÁC THỰC ĐIỆN TỬ
A12: THỦ TỤC HÀNH CHÍNH 1: Đăng ký định danh điện tử
A13: I. | B13: CHI PHÍ THỰC HIỆN TTHC DỰ KIẾN BAN HÀNH MỚI
A15: STT | B15: Các công việc khi thực hiện TTHC | C15: Các hoạt động/ cách thức thực hiện cụ thể | D15: Thời gian thực hiện (giờ) | E15: Mức TNBQ/ 01 giờ làm việc (đồng) | F15: Mức chi phí thuê tư vấn, dịch vụ (đồng) | G15: Mức phí, lệ phí, chi phí khác (đồng) | H15: Số lần thực hiện/ 01 năm | I15: Số lượng đối tượng tuân thủ/01 năm | J15: Chi phí thực hiện TTHC (đồng) | K15: Tổng chi phí thực hiện TTHC/ 01 năm (đồng) | L15: Ghi chú
A16: 1 | B16: Chuẩn bị hồ sơ
B17: Cá nhân, tổ chức chuẩn bị hồ sơ theo quy định để chứng minh đối tượng đăng ký định danh điện tử | C17: Chuẩn bị hồ sơ | D17: 2 | E17: 58228 | H17: 1 | I17: 100000000 | J17: =G17+F17+(D17*E17) -> 116456 | K17: =J17*I17*H17 -> 11645600000000
A18: 2 | B18: Nộp hồ sơ | C18: Trực tiếp | D18: 2 | E18: 58228 | H18: 1 | I18: 50000000 | J18: =G18+F18+(D18*E18) -> 116456 | K18: =J18*I18*H18 -> 5822800000000
C19: Bưu chính | D19: 0 | E19: 58228 | H19: 1 | J19: 0 | K19: 0
C20: Điện tử | D20: 0.5 | E20: 58228 | H20: 1 | I20: 50000000 | J20: 29114 | K20: 1455700000000
A21: 3 | B21: Nộp phí, lệ phí, chi phí khác | E21: 58228 | H21: 1 | I21: 100000000 | J21: 0 | K21: 0
A22: 3.1 | B22: Phí | D22: 0 | E22: 58228 | H22: 1 | I22: 100000000 | J22: 0 | K22: 0
A23: 3.2 | B23: Lệ phí | D23: 0 | E23: 58228 | H23: 1 | I23: 100000000 | J23: 0 | K23: 0
A24: 3.3 | B24: Chi phí khác | D24: 0 | E24: 58228 | H24: 1 | I24: 100000000 | J24: 0 | K24: 0
A25: 4 | B25: Chuẩn bị, phục vụ việc kiểm tra, đánh giá của cơ quan có thẩm quyền (nếu có) | D25: 0 | E25: 58228 | H25: 1 | I25: 100000000 | J25: 0 | K25: 0
A26: 5 | B26: Công việc khác (nếu có) | D26: 0 | E26: 58228 | H26: 1 | I26: 100000000 | J26: 0 | K26: 0
A27: 6 | B27: Nhận kết quả | C27: Trực tiếp | D27: 2 | E27: 58228 | H27: 1 | I27: 100000000 | J27: 116456 | K27: 11645600000000
C28: Bưu chính | D28: 0 | E28: 58228 | H28: 1 | I28: 100000000 | J28: 0 | K28: 0
C29: Điện tử | D29: 0.1 | E29: 58228 | H29: 1 | I29: 100000000 | J29: 5822.8 | K29: 582280000000
B30: TỔNG | F30: =SUM(F17:F25) -> 0 | G30: =SUM(G17:G25) -> 0 | J30: =SUM(J17:J29) -> 384304.8 | K30: =SUM(K17:K29) -> 31151980000000
A31: Cách quy đổi chi phí thời gian ra tiền mặt để tính chi phí tuân thủ của đối tượng thực hiện TTHC: Mức thu nhập bình quân 01 người 01 giờ làm việc = Tổng sản phẩm trong nước (theo thống kê của năm gần nhất) / [(Số dân tương ứng năm thống kê) x 12 tháng x 22 ngày làm việc x 08 giờ làm việc)].
A32: Theo số liệu của Tổng cục Thống kê, GDP năm 2025 đạt 12.847,6 nghìn tỷ đồng; tổng dân số năm 2025 là 102,3 triệu. Do đó, chi phí trung bình cho 01 giờ làm việc của đối tượng thực hiện TTHC là khoảng 58.228 đồng/giờ làm việc.
A34: THỦ TỤC HÀNH CHÍNH 2: Tạm dừng hiệu lực danh tính điện tử
A35: I. | B35: CHI PHÍ THỰC HIỆN TTHC DỰ KIẾN BAN HÀNH MỚI
A37: STT | B37: Các công việc khi thực hiện TTHC | C37: Các hoạt động/ cách thức thực hiện cụ thể | D37: Thời gian thực hiện (giờ) | E37: Mức TNBQ/ 01 giờ làm việc (đồng) | F37: Mức chi phí thuê tư vấn, dịch vụ (đồng) | G37: Mức phí, lệ phí, chi phí khác (đồng) | H37: Số lần thực hiện/ 01 năm | I37: Số lượng đối tượng tuân thủ/01 năm | J37: Chi phí thực hiện TTHC (đồng) | K37: Tổng chi phí thực hiện TTHC/ 01 năm (đồng) | L37: Ghi chú
A38: 1 | B38: Chuẩn bị hồ sơ
B39: Cá nhân, tổ chức chuẩn bị hồ sơ theo quy định | C39: Chuẩn bị hồ sơ | D39: 1 | E39: 58228 | H39: 1 | I39: 200 | J39: =G39+F39+(D39*E39) -> 58228 | K39: =J39*I39*H39 -> 11645600
A40: 2 | B40: Nộp hồ sơ | C40: Trực tiếp | D40: 0 | E40: 58228 | H40: 1 | I40: 200 | J40: =G40+F40+(D40*E40) -> 0 | K40: =J40*I40*H40 -> 0
C41: Bưu chính | D41: 0 | E41: 58228 | H41: 1 | I41: 200 | J41: 0 | K41: 0
C42: Điện tử | D42: 0.5 | E42: 58228 | H42: 1 | I42: 200 | J42: 29114 | K42: 5822800
A43: 3 | B43: Nộp phí, lệ phí, chi phí khác | E43: 58228 | H43: 1 | I43: 200 | J43: 0 | K43: 0
A44: 3.1 | B44: Phí | D44: 0 | E44: 58228 | H44: 1 | I44: 200 | J44: 0 | K44: 0
A45: 3.2 | B45: Lệ phí | D45: 0 | E45: 58228 | H45: 1 | I45: 200 | J45: 0 | K45: 0
A46: 3.3 | B46: Chi phí khác | D46: 0 | E46: 58228 | H46: 1 | I46: 200 | J46: 0 | K46: 0
A47: 4 | B47: Chuẩn bị, phục vụ việc kiểm tra, đánh giá của cơ quan có thẩm quyền (nếu có) | D47: 0 | E47: 58228 | H47: 1 | I47: 200 | J47: 0 | K47: 0
A48: 5 | B48: Công việc khác (nếu có) | D48: 0 | E48: 58228 | H48: 1 | I48: 200 | J48: 0 | K48: 0
A49: 6 | B49: Nhận kết quả | C49: Trực tiếp | D49: 0 | E49: 58228 | H49: 1 | I49: 200 | J49: 0 | K49: 0
C50: Bưu chính | D50: 0 | E50: 58228 | H50: 1 | I50: 200 | J50: 0 | K50: 0
C51: Điện tử | D51: 0.1 | E51: 58228 | H51: 1 | I51: 200 | J51: 5822.8 | K51: 1164560
B52: TỔNG | F52: =SUM(F39:F47) -> 0 | G52: =SUM(G39:G47) -> 0 | J52: =SUM(J39:J51) -> 93164.8 | K52: =SUM(K39:K51) -> 18632960
A54: THỦ TỤC HÀNH CHÍNH 3: Khôi phục danh tính điện tử
A55: I. | B55: CHI PHÍ THỰC HIỆN TTHC DỰ KIẾN BAN HÀNH MỚI
A57: STT | B57: Các công việc khi thực hiện TTHC | C57: Các hoạt động/ cách thức thực hiện cụ thể | D57: Thời gian thực hiện (giờ) | E57: Mức TNBQ/ 01 giờ làm việc (đồng) | F57: Mức chi phí thuê tư vấn, dịch vụ (đồng) | G57: Mức phí, lệ phí, chi phí khác (đồng) | H57: Số lần thực hiện/ 01 năm | I57: Số lượng đối tượng tuân thủ/01 năm | J57: Chi phí thực hiện TTHC (đồng) | K57: Tổng chi phí thực hiện TTHC/ 01 năm (đồng) | L57: Ghi chú
A58: 1 | B58: Chuẩn bị hồ sơ
B59: Cá nhân, tổ chức chuẩn bị hồ sơ chứng minh để đề nghị khôi phục danh tính điện tử | C59: Chuẩn bị hồ sơ | D59: 3 | E59: 58228 | H59: 1 | I59: 200 | J59: =G59+F59+(D59*E59) -> 174684 | K59: =J59*I59*H59 -> 34936800
A60: 2 | B60: Nộp hồ sơ | C60: Trực tiếp | D60: 2 | E60: 58228 | H60: 1 | I60: 100 | J60: =G60+F60+(D60*E60) -> 116456 | K60: =J60*I60*H60 -> 11645600
C61: Bưu chính | D61: 0 | E61: 58228 | H61: 1 | J61: 0 | K61: 0
C62: Điện tử | D62: 0.5 | E62: 58228 | H62: 1 | I62: 100 | J62: 29114 | K62: 2911400
A63: 3 | B63: Nộp phí, lệ phí, chi phí khác | E63: 58228 | H63: 1 | I63: 200 | J63: 0 | K63: 0
A64: 3.1 | B64: Phí | D64: 0 | E64: 58228 | H64: 1 | I64: 200 | J64: 0 | K64: 0
A65: 3.2 | B65: Lệ phí | D65: 0 | E65: 58228 | H65: 1 | I65: 200 | J65: 0 | K65: 0
A66: 3.3 | B66: Chi phí khác | D66: 0 | E66: 58228 | H66: 1 | I66: 200 | J66: 0 | K66: 0
A67: 4 | B67: Chuẩn bị, phục vụ việc kiểm tra, đánh giá của cơ quan có thẩm quyền (nếu có) | D67: 0 | E67: 58228 | H67: 1 | I67: 200 | J67: 0 | K67: 0
A68: 5 | B68: Công việc khác (nếu có) | D68: 0 | E68: 58228 | H68: 1 | I68: 200 | J68: 0 | K68: 0
A69: 6 | B69: Nhận kết quả | C69: Trực tiếp | D69: 0 | E69: 58228 | H69: 1 | I69: 200 | J69: 0 | K69: 0
C70: Bưu chính | D70: 0 | E70: 58228 | H70: 1 | I70: 200 | J70: 0 | K70: 0
C71: Điện tử | D71: 0.1 | E71: 58228 | H71: 1 | I71: 200 | J71: 5822.8 | K71: 1164560
B72: TỔNG | F72: =SUM(F59:F67) -> 0 | G72: =SUM(G59:G67) -> 0 | J72: =SUM(J59:J71) -> 326076.8 | K72: =SUM(K59:K71) -> 50658360
A74: THỦ TỤC HÀNH CHÍNH 4: Chấm dứt danh tính điện tử
A75: I. | B75: CHI PHÍ THỰC HIỆN TTHC DỰ KIẾN BAN HÀNH MỚI
A77: STT | B77: Các công việc khi thực hiện TTHC | C77: Các hoạt động/ cách thức thực hiện cụ thể | D77: Thời gian thực hiện (giờ) | E77: Mức TNBQ/ 01 giờ làm việc (đồng) | F77: Mức chi phí thuê tư vấn, dịch vụ (đồng) | G77: Mức phí, lệ phí, chi phí khác (đồng) | H77: Số lần thực hiện/ 01 năm | I77: Số lượng đối tượng tuân thủ/01 năm | J77: Chi phí thực hiện TTHC (đồng) | K77: Tổng chi phí thực hiện TTHC/ 01 năm (đồng) | L77: Ghi chú
A78: 1 | B78: Chuẩn bị hồ sơ
B79: Cá nhân, tổ chức chuẩn bị hồ sơ đề nghị chấm dứt danh tính điện tử | C79: Chuẩn bị hồ sơ | D79: 1 | E79: 58228 | H79: 1 | I79: 500 | J79: =G79+F79+(D79*E79) -> 58228 | K79: =J79*I79*H79 -> 29114000
A80: 2 | B80: Nộp hồ sơ | C80: Trực tiếp | D80: 2 | E80: 58228 | H80: 1 | I80: 200 | J80: =G80+F80+(D80*E80) -> 116456 | K80: =J80*I80*H80 -> 23291200
C81: Bưu chính | D81: 0 | E81: 58228 | H81: 1 | J81: 0 | K81: 0
C82: Điện tử | D82: 0.5 | E82: 58228 | H82: 1 | I82: 300 | J82: 29114 | K82: 8734200
A83: 3 | B83: Nộp phí, lệ phí, chi phí khác | E83: 58228 | H83: 1 | I83: 500 | J83: 0 | K83: 0
A84: 3.1 | B84: Phí | D84: 0 | E84: 58228 | H84: 1 | I84: 500 | J84: 0 | K84: 0
A85: 3.2 | B85: Lệ phí | D85: 0 | E85: 58228 | H85: 1 | I85: 500 | J85: 0 | K85: 0
A86: 3.3 | B86: Chi phí khác | D86: 0 | E86: 58228 | H86: 1 | I86: 500 | J86: 0 | K86: 0
A87: 4 | B87: Chuẩn bị, phục vụ việc kiểm tra, đánh giá của cơ quan có thẩm quyền (nếu có) | D87: 0 | E87: 58228 | H87: 1 | I87: 500 | J87: 0 | K87: 0
A88: 5 | B88: Công việc khác (nếu có) | D88: 0 | E88: 58228 | H88: 1 | I88: 500 | J88: 0 | K88: 0
A89: 6 | B89: Nhận kết quả | C89: Trực tiếp | D89: 0 | E89: 58228 | H89: 1 | I89: 500 | J89: 0 | K89: 0
C90: Bưu chính | D90: 0 | E90: 58228 | H90: 1 | I90: 500 | J90: 0 | K90: 0
C91: Điện tử | D91: 0.1 | E91: 58228 | H91: 1 | I91: 500 | J91: 5822.8 | K91: 2911400
B92: TỔNG | F92: =SUM(F79:F87) -> 0 | G92: =SUM(G79:G87) -> 0 | J92: =SUM(J79:J91) -> 209620.8 | K92: =SUM(K79:K91) -> 64050800
A94: THỦ TỤC HÀNH CHÍNH 5: Cấp chứng thư điện tử xác nhận thông tin
A95: I. | B95: CHI PHÍ THỰC HIỆN TTHC DỰ KIẾN BAN HÀNH MỚI
A97: STT | B97: Các công việc khi thực hiện TTHC | C97: Các hoạt động/ cách thức thực hiện cụ thể | D97: Thời gian thực hiện (giờ) | E97: Mức TNBQ/ 01 giờ làm việc (đồng) | F97: Mức chi phí thuê tư vấn, dịch vụ (đồng) | G97: Mức phí, lệ phí, chi phí khác (đồng) | H97: Số lần thực hiện/ 01 năm | I97: Số lượng đối tượng tuân thủ/01 năm | J97: Chi phí thực hiện TTHC (đồng) | K97: Tổng chi phí thực hiện TTHC/ 01 năm (đồng) | L97: Ghi chú
A98: 1 | B98: Chuẩn bị hồ sơ
B99: Cá nhân, tổ chức chuẩn bị hồ sơ đề nghị cấp chứng thư điện tử xác nhận thông tin theo quy định | C99: Chuẩn bị hồ sơ | D99: 2 | E99: 58228 | H99: 1 | I99: 100000000 | J99: =G99+F99+(D99*E99) -> 116456 | K99: =J99*I99*H99 -> 11645600000000
A100: 2 | B100: Nộp hồ sơ | C100: Trực tiếp | D100: 2 | E100: 58228 | H100: 1 | I100: 50000000 | J100: =G100+F100+(D100*E100) -> 116456 | K100: =J100*I100*H100 -> 5822800000000
C101: Bưu chính | D101: 0 | E101: 58228 | H101: 1 | J101: 0 | K101: 0
C102: Điện tử | D102: 0.5 | E102: 58228 | H102: 1 | I102: 100000000 | J102: 29114 | K102: 2911400000000
A103: 3 | B103: Nộp phí, lệ phí, chi phí khác | E103: 58228 | H103: 1 | I103: 100000000 | J103: 0 | K103: 0
A104: 3.1 | B104: Phí | D104: 0 | E104: 58228 | H104: 1 | I104: 100000000 | J104: 0 | K104: 0
A105: 3.2 | B105: Lệ phí | D105: 0 | E105: 58228 | H105: 1 | I105: 100000000 | J105: 0 | K105: 0
A106: 3.3 | B106: Chi phí khác | D106: 0 | E106: 58228 | H106: 1 | I106: 100000000 | J106: 0 | K106: 0
A107: 4 | B107: Chuẩn bị, phục vụ việc kiểm tra, đánh giá của cơ quan có thẩm quyền (nếu có) | D107: 0 | E107: 58228 | H107: 1 | I107: 100000000 | J107: 0 | K107: 0
A108: 5 | B108: Công việc khác (nếu có) | D108: 0 | E108: 58228 | H108: 1 | I108: 100000000 | J108: 0 | K108: 0
A109: 6 | B109: Nhận kết quả | C109: Trực tiếp | D109: 0 | E109: 58228 | H109: 1 | I109: 100000000 | J109: 0 | K109: 0
C110: Bưu chính | D110: 0 | E110: 58228 | H110: 1 | I110: 100000000 | J110: 0 | K110: 0
C111: Điện tử | D111: 0.1 | E111: 58228 | H111: 1 | I111: 100000000 | J111: 5822.8 | K111: 582280000000
B112: TỔNG | F112: =SUM(F99:F107) -> 0 | G112: =SUM(G99:G107) -> 0 | J112: =SUM(J99:J111) -> 267848.8 | K112: =SUM(K99:K111) -> 20962080000000
A114: THỦ TỤC HÀNH CHÍNH 6: Gia hạn chứng thư điện tử xác nhận thông tin
A115: I. | B115: CHI PHÍ THỰC HIỆN TTHC DỰ KIẾN BAN HÀNH MỚI
A117: STT | B117: Các công việc khi thực hiện TTHC | C117: Các hoạt động/ cách thức thực hiện cụ thể | D117: Thời gian thực hiện (giờ) | E117: Mức TNBQ/ 01 giờ làm việc (đồng) | F117: Mức chi phí thuê tư vấn, dịch vụ (đồng) | G117: Mức phí, lệ phí, chi phí khác (đồng) | H117: Số lần thực hiện/ 01 năm | I117: Số lượng đối tượng tuân thủ/01 năm | J117: Chi phí thực hiện TTHC (đồng) | K117: Tổng chi phí thực hiện TTHC/ 01 năm (đồng) | L117: Ghi chú
A118: 1 | B118: Chuẩn bị hồ sơ
B119: Cá nhân, tổ chức chuẩn bị hồ sơ đề nghị gia hạn chứng thư điện tử xác nhận thông tin theo quy định | C119: Chuẩn bị hồ sơ | D119: 2 | E119: 58228 | H119: 1 | I119: 2000000 | J119: =G119+F119+(D119*E119) -> 116456 | K119: =J119*I119*H119 -> 232912000000
A120: 2 | B120: Nộp hồ sơ | C120: Trực tiếp | D120: 2 | E120: 58228 | H120: 1 | I120: 0 | J120: =G120+F120+(D120*E120) -> 116456 | K120: =J120*I120*H120 -> 0
C121: Bưu chính | D121: 0 | E121: 58228 | H121: 1 | J121: 0 | K121: 0
C122: Điện tử | D122: 0.5 | E122: 58228 | H122: 1 | I122: 2000000 | J122: 29114 | K122: 58228000000
A123: 3 | B123: Nộp phí, lệ phí, chi phí khác | E123: 58228 | H123: 1 | I123: 2000000 | J123: 0 | K123: 0
A124: 3.1 | B124: Phí | D124: 0 | E124: 58228 | H124: 1 | I124: 2000000 | J124: 0 | K124: 0
A125: 3.2 | B125: Lệ phí | D125: 0 | E125: 58228 | H125: 1 | I125: 2000000 | J125: 0 | K125: 0
A126: 3.3 | B126: Chi phí khác | D126: 0 | E126: 58228 | H126: 1 | I126: 2000000 | J126: 0 | K126: 0
A127: 4 | B127: Chuẩn bị, phục vụ việc kiểm tra, đánh giá của cơ quan có thẩm quyền (nếu có) | D127: 0 | E127: 58228 | H127: 1 | I127: 2000000 | J127: 0 | K127: 0
A128: 5 | B128: Công việc khác (nếu có) | D128: 0 | E128: 58228 | H128: 1 | I128: 2000000 | J128: 0 | K128: 0
A129: 6 | B129: Nhận kết quả | C129: Trực tiếp | D129: 0 | E129: 58228 | H129: 1 | I129: 2000000 | J129: 0 | K129: 0
C130: Bưu chính | D130: 0 | E130: 58228 | H130: 1 | I130: 2000000 | J130: 0 | K130: 0
C131: Điện tử | D131: 0.1 | E131: 58228 | H131: 1 | I131: 2000000 | J131: 5822.8 | K131: 11645600000
B132: TỔNG | F132: =SUM(F119:F127) -> 0 | G132: =SUM(G119:G127) -> 0 | J132: =SUM(J119:J131) -> 267848.8 | K132: =SUM(K119:K131) -> 302785600000
A134: THỦ TỤC HÀNH CHÍNH 7: Vô hiệu hóa chứng thư điện tử xác nhận thông tin
A135: I. | B135: CHI PHÍ THỰC HIỆN TTHC DỰ KIẾN BAN HÀNH MỚI
A137: STT | B137: Các công việc khi thực hiện TTHC | C137: Các hoạt động/ cách thức thực hiện cụ thể | D137: Thời gian thực hiện (giờ) | E137: Mức TNBQ/ 01 giờ làm việc (đồng) | F137: Mức chi phí thuê tư vấn, dịch vụ (đồng) | G137: Mức phí, lệ phí, chi phí khác (đồng) | H137: Số lần thực hiện/ 01 năm | I137: Số lượng đối tượng tuân thủ/01 năm | J137: Chi phí thực hiện TTHC (đồng) | K137: Tổng chi phí thực hiện TTHC/ 01 năm (đồng) | L137: Ghi chú
A138: 1 | B138: Chuẩn bị hồ sơ
B139: Cá nhân, tổ chức chuẩn bị hồ sơ đề nghị vô hiệu hóa chứng thư điện tử xác nhận thông tin theo quy định | C139: Chuẩn bị hồ sơ | D139: 2 | E139: 58228 | H139: 1 | I139: 500 | J139: =G139+F139+(D139*E139) -> 116456 | K139: =J139*I139*H139 -> 58228000
A140: 2 | B140: Nộp hồ sơ | C140: Trực tiếp | D140: 2 | E140: 58228 | H140: 1 | I140: 0 | J140: =G140+F140+(D140*E140) -> 116456 | K140: =J140*I140*H140 -> 0
C141: Bưu chính | D141: 0 | E141: 58228 | H141: 1 | J141: 0 | K141: 0
C142: Điện tử | D142: 0.5 | E142: 58228 | H142: 1 | I142: 500 | J142: 29114 | K142: 14557000
A143: 3 | B143: Nộp phí, lệ phí, chi phí khác | E143: 58228 | H143: 1 | I143: 500 | J143: 0 | K143: 0
A144: 3.1 | B144: Phí | D144: 0 | E144: 58228 | H144: 1 | I144: 500 | J144: 0 | K144: 0
A145: 3.2 | B145: Lệ phí | D145: 0 | E145: 58228 | H145: 1 | I145: 500 | J145: 0 | K145: 0
A146: 3.3 | B146: Chi phí khác | D146: 0 | E146: 58228 | H146: 1 | I146: 500 | J146: 0 | K146: 0
A147: 4 | B147: Chuẩn bị, phục vụ việc kiểm tra, đánh giá của cơ quan có thẩm quyền (nếu có) | D147: 0 | E147: 58228 | H147: 1 | I147: 500 | J147: 0 | K147: 0
A148: 5 | B148: Công việc khác (nếu có) | D148: 0 | E148: 58228 | H148: 1 | I148: 500 | J148: 0 | K148: 0
A149: 6 | B149: Nhận kết quả | C149: Trực tiếp | D149: 0 | E149: 58228 | H149: 1 | I149: 500 | J149: 0 | K149: 0
C150: Bưu chính | D150: 0 | E150: 58228 | H150: 1 | I150: 500 | J150: 0 | K150: 0
C151: Điện tử | D151: 0.1 | E151: 58228 | H151: 1 | I151: 500 | J151: 5822.8 | K151: 2911400
B152: TỔNG | F152: =SUM(F139:F147) -> 0 | G152: =SUM(G139:G147) -> 0 | J152: =SUM(J139:J151) -> 267848.8 | K152: =SUM(K139:K151) -> 75696400
A153: THỦ TỤC HÀNH CHÍNH 8: Khai thác và sử dụng dữ liệu định danh điện tử quốc gia
A154: I. | B154: CHI PHÍ THỰC HIỆN TTHC DỰ KIẾN BAN HÀNH MỚI
A156: STT | B156: Các công việc khi thực hiện TTHC | C156: Các hoạt động/ cách thức thực hiện cụ thể | D156: Thời gian thực hiện (giờ) | E156: Mức TNBQ/ 01 giờ làm việc (đồng) | F156: Mức chi phí thuê tư vấn, dịch vụ (đồng) | G156: Mức phí, lệ phí, chi phí khác (đồng) | H156: Số lần thực hiện/ 01 năm | I156: Số lượng đối tượng tuân thủ/01 năm | J156: Chi phí thực hiện TTHC (đồng) | K156: Tổng chi phí thực hiện TTHC/ 01 năm (đồng) | L156: Ghi chú
A157: 1 | B157: Chuẩn bị hồ sơ
B158: Cá nhân, tổ chức chuẩn bị hồ sơ đề nghị Khai thác và sử dụng dữ liệu định danh điện tử quốc gia | C158: Chuẩn bị hồ sơ | D158: 8 | E158: 58228 | H158: 1 | I158: 500 | J158: =G158+F158+(D158*E158) -> 465824 | K158: =J158*I158*H158 -> 232912000
A159: 2 | B159: Nộp hồ sơ | C159: Trực tiếp | D159: 2 | E159: 58228 | H159: 1 | I159: 200 | J159: =G159+F159+(D159*E159) -> 116456 | K159: =J159*I159*H159 -> 23291200
C160: Bưu chính | D160: 0 | E160: 58228 | H160: 1 | J160: 0 | K160: 0
C161: Điện tử | D161: 0.5 | E161: 58228 | H161: 1 | I161: 300 | J161: 29114 | K161: 8734200
A162: 3 | B162: Nộp phí, lệ phí, chi phí khác | E162: 58228 | H162: 1 | I162: 500 | J162: 0 | K162: 0
A163: 3.1 | B163: Phí | D163: 0.5 | E163: 58228 | H163: 1 | I163: 500 | J163: 29114 | K163: 14557000 | L163: Chưa có quy định cụ thể
A164: 3.2 | B164: Lệ phí | D164: 0 | E164: 58228 | H164: 1 | I164: 500 | J164: 0 | K164: 0
A165: 3.3 | B165: Chi phí khác | D165: 0 | E165: 58228 | H165: 1 | I165: 500 | J165: 0 | K165: 0
A166: 4 | B166: Chuẩn bị, phục vụ việc kiểm tra, đánh giá của cơ quan có thẩm quyền (nếu có) | D166: 0 | E166: 58228 | H166: 1 | I166: 500 | J166: 0 | K166: 0
A167: 5 | B167: Công việc khác (nếu có) | D167: 0 | E167: 58228 | H167: 1 | I167: 500 | J167: 0 | K167: 0
A168: 6 | B168: Nhận kết quả | C168: Trực tiếp | D168: 0 | E168: 58228 | H168: 1 | I168: 500 | J168: 0 | K168: 0
C169: Bưu chính | D169: 0 | E169: 58228 | H169: 1 | I169: 500 | J169: 0 | K169: 0
C170: Điện tử | D170: 0.1 | E170: 58228 | H170: 1 | I170: 500 | J170: 5822.8 | K170: 2911400
B171: TỔNG | F171: =SUM(F158:F166) -> 0 | G171: =SUM(G158:G166) -> 0 | J171: =SUM(J158:J170) -> 646330.8 | K171: =SUM(K158:K170) -> 282405800

Sheet Tổng hợp
B1: Chi phí dự kiến
A2: Thủ tục 1 | B2: ='Chi phí dự kiến'!K30 -> 31151980000000
A3: Thủ tục 2 | B3: ='Chi phí dự kiến'!K52 -> 18632960
A4: Thủ tục 3 | B4: ='Chi phí dự kiến'!K72 -> 50658360
A5: Thủ tục 4 | B5: ='Chi phí dự kiến'!K92 -> 64050800
A6: Thủ tục 5 | B6: ='Chi phí dự kiến'!K112 -> 20962080000000
A7: Thủ tục 6 | B7: ='Chi phí dự kiến'!K132 -> 302785600000
A8: Thủ tục 7 | B8: ='Chi phí dự kiến'!K152 -> 75696400
A9: Thủ tục 8 | B9: ='Chi phí dự kiến'!K171 -> 282405800
A10: Tổng cộng | B10: =SUM(B2:B9) -> 52417337044320
